Cogmind - Beta 10.2 @@@ ROGUE MODE // 2021.08.07 @ 21:17:38 Player: Coronach Result: Destroyed by S-43 Plague with Heavy Machine Gun Performance ------------- Evolutions (7) 3500 Regions Visited (27) 5400 Robots Destroyed (261) 1305 Value Destroyed (11841) 11841 Prototype IDs (31) 620 Alien Tech Used (0) 0 Bonus (5689) 5689 TOTAL SCORE: 28355 Bonus ------- High Alert Combat Kills 1542 Follower Combat Kills 1297 Entered Garrisons 1000 Used RIF Installer 2000 Met Data Miner 300 Friendly Fire -450 Cogmind --------- Core Integrity 0/1300 Matter 259/300 Energy 56/100 System Corruption 5% Temperature Cool (0) Movement Core (50) Location -3/Testing Parts ------- > --- POWER (2) -------- (None) > --- PROPULSION (4) --- (None) > --- UTILITY (13) ----- (None) > --- WEAPON (2) ------- (None) > --- INVENTORY (4) ---- Energy Well (500) Matter Compressor (39) Nova Cannon Improved Remote Datajack Peak State ------------ > --- POWER ------------ Reinforced Fission Core Micro Fission Core > --- PROPULSION ------- Medium Treads Flexi-carbon Leg Antigrav System Antigrav System > --- UTILITY ---------- Power Amplifier Advanced Heat Sink Advanced Heat Sink Humpback Precision Matter Filter Improved Medium Armor Plating Improved Medium Armor Plating System Shield > --- WEAPON ----------- KE Penetrator KE Penetrator > --- INVENTORY -------- Reinforced Fission Core Improved Cooling System Coolant Injector High-capacity Storage Unit Energy Well Matter Compressor Precision Matter Filter Nanoactuators Relay Coupler [Demolisher] System Backup Module High-powered Shock Rifle Tesla Rifle Plasma Rifle Long-range Proton Cannon Advanced Plasma Cannon Neutron Cannon KE Penetrator Enhanced Gauss Cannon Enhanced Gauss Cannon Enhanced Gauss Cannon Improved Remote Datajack Force Lance Force Lance Force Lance [Rating: 93] Favorites ----------- Power Light Angular Momentum Engine Engine Light Angular Momentum Engine Power Core Nuclear Core Reactor Antimatter Reactor Propulsion Armored Wheel Treads Light Treads Leg Flexi-carbon Leg Wheel Armored Wheel Hover Unit Cooled Airjet Flight Unit VTOL Module Utility Large Storage Unit Device Advanced Heat Sink Storage Large Storage Unit Processor Advanced Melee Analysis Suite Hackware Hacking Suite Protection Layered Medium Armor Plating Weapon Light EM Pulse Cannon Energy Gun Plasma Rifle Energy Cannon Light EM Pulse Cannon Ballistic Gun KE Penetrator Ballistic Cannon Enhanced Gauss Cannon Launcher Rocket Array Special Weapon Improved Remote Datajack Impact Weapon Great Maul Slashing Weapon Axe Piercing Weapon Force Lance Special Melee Weapon Improved Datajack Build | -11 -10 -10 -10 -9 -8 -8 -8 -7 -7 -7 -7 -7 -6 -6 -6 -6 -6 -6 -5 -5 -5 -5 -5 -4 -4 -3 -3 ------- Run | Scr Mat Min Exi Min Mat Gar Mat Fac Gar Fac Low Low Fac Gar Fac Low Low Dat Pro Fac Gar Fac Ext Fac Gar Res Tes Slots Evolved 14 | . . . . . 4 . . 2 . . . . 2 . . . . . . 2 . . . 2 . 2 . Power 1 | . . . . . 1 . . . . . . . . . . . . . . . . . . . . . . Propulsion 2 | . . . . . 1 . . 1 . . . . . . . . . . . . . . . . . . . Utility 11 | . . . . . 2 . . 1 . . . . 2 . . . . . . 2 . . . 2 . 2 . Weapon . | . . . . . . . . . . . . . . . . . . . . . . . . . . . . Parts Attached 685 | 3 13 . 5 . 96 45 43 22 17 21 8 1 41 39 33 26 5 2 37 47 81 7 40 10 21 18 4 Power 73 | . 2 . . . 15 7 6 . 1 1 2 . 5 7 3 1 1 . 4 5 8 . 4 . 1 . . Engine 45 | . 1 . . . 10 5 3 . . 1 2 . 5 7 2 1 1 . 1 3 1 . 2 . . . . Core 27 | . 1 . . . 5 2 3 . 1 . . . . . 1 . . . 2 2 7 . 2 . 1 . . Reactor 1 | . . . . . . . . . . . . . . . . . . . 1 . . . . . . . . Propulsion 122 | 2 4 . 4 . 9 9 7 5 7 3 . . 11 8 6 4 1 . 3 7 15 1 8 2 1 4 1 Treads 30 | . 2 . 2 . 8 3 2 . . . . . . 2 . 4 . . 2 2 1 . . . 1 . 1 Leg 22 | . . . . . . . . . 3 . . . 7 3 4 . . . . 2 3 . . . . . . Wheel 46 | 2 2 . 2 . 1 6 5 3 2 1 . . 1 3 2 . 1 . 1 . 3 1 8 2 . . . Hover 15 | . . . . . . . . 2 . 2 . . 1 . . . . . . 1 6 . . . . 3 . Flight 9 | . . . . . . . . . 2 . . . 2 . . . . . . 2 2 . . . . 1 . Utility 267 | . 4 . 1 . 48 15 24 13 6 8 . 1 11 11 13 12 3 . 14 20 21 3 14 5 9 11 . Device 167 | . 2 . . . 41 8 11 7 3 4 . 1 4 6 10 12 2 . 9 16 6 2 8 4 6 5 . Storage 30 | . 2 . 1 . 5 3 1 1 2 2 . . . 1 1 . 1 . 2 . 5 . 2 . . 1 . Processor 17 | . . . . . . . . . 1 . . . 3 3 1 . . . . 1 1 1 1 . . 5 . Hackware 25 | . . . . . . . 4 3 . 2 . . 2 . 1 . . . . 1 6 . 3 1 2 . . Protection 28 | . . . . . 2 4 8 2 . . . . 2 1 . . . . 3 2 3 . . . 1 . . Artifact . | . . . . . . . . . . . . . . . . . . . . . . . . . . . . Weapon 223 | 1 3 . . . 24 14 6 4 3 9 6 . 14 13 11 9 . 2 16 15 37 3 14 3 10 3 3 Energy Gun 34 | . 1 . . . 2 1 . . . . . . 2 5 5 4 . 2 6 3 2 . . . . . 1 Energy Cannon 56 | . 2 . . . 15 3 . 1 . 2 1 . 1 . 3 2 . . 1 4 9 2 3 2 2 3 . Ballistic Gun 27 | 1 . . . . . 4 . . . . . . . . . 2 . . 3 6 5 . 3 . 2 . 1 Ballistic Cannon 14 | . . . . . . . . . . . . . . . . . . . . . 7 . 3 . 3 . 1 Launcher 18 | . . . . . . 1 1 . 1 . 3 . 1 3 2 . . . . . 4 . 1 . 1 . . Special Weapon 16 | . . . . . 3 . . 1 . 2 . . 2 . . . . . . 1 3 1 2 1 . . . Impact Weapon 15 | . . . . . . . 3 2 1 3 2 . 3 1 . . . . . . . . . . . . . Slashing Weapon 18 | . . . . . 4 4 1 . 1 2 . . 5 1 . . . . . . . . . . . . . Piercing Weapon 23 | . . . . . . . . . . . . . . 3 1 1 . . 6 1 7 . 2 . 2 . . Special Melee Weapon 2 | . . . . . . 1 1 . . . . . . . . . . . . . . . . . . . . Unidentified Prototypes 13 | . . . . . 1 . . 1 . 3 . . 1 . 1 . . . . 2 . . . . . 1 3 Parts Lost 150 | . 2 . . . 6 11 3 2 5 . 1 . 6 12 4 9 3 . 16 7 18 . 11 1 24 7 2 Power 26 | . 1 . . . 3 2 . . . . . . 3 4 . 2 . . 5 2 . . 2 . 2 . . Propulsion 48 | . . . . . 1 2 1 1 4 . . . 1 2 1 3 2 . 4 2 10 . 4 1 5 3 1 Utility 45 | . . . . . . 2 2 . 1 . . . 2 4 1 2 1 . 3 3 5 . 3 . 11 4 1 Weapon 31 | . 1 . . . 2 5 . 1 . . 1 . . 2 2 2 . . 4 . 3 . 2 . 6 . . Highest Loss Streak 23 | . 2 . . . 4 10 1 1 5 . 1 . 4 4 3 3 2 . 9 5 11 . 9 1 23 5 2 Average Slot Usage (%) 88 | . 98 100 86 85 89 88 89 90 90 99 100 100 95 94 98 94 93 85 74 76 89 99 94 94 74 41 32 Engine 6 | . 7 . . . 11 14 9 . . 3 13 15 12 9 10 5 7 13 6 4 . 5 2 . . . . Core 5 | . 6 14 14 14 6 3 8 15 15 11 1 . . . 1 3 . . 1 3 10 5 8 10 7 . . Treads 7 | . 9 . 25 . 17 7 4 15 5 . . . . 1 7 5 22 13 4 6 2 5 1 . . . 2 Leg 3 | . . . . . . . . . 4 . . . 15 14 10 17 . . . 1 3 4 . . . . . Wheel 7 | . 18 28 2 28 9 19 22 9 6 14 15 15 5 8 5 . 1 6 4 . 3 11 17 21 12 . . Hover 2 | . . . . . . . . 4 2 11 15 15 3 . . . . . . 1 8 . . . . 4 3 Device 13 | . 13 14 1 . 16 9 7 7 8 5 7 15 12 9 13 13 17 20 19 23 18 7 9 12 13 12 . Storage 10 | . 14 14 13 14 9 12 9 7 10 15 15 15 13 14 13 13 13 13 11 5 5 11 12 15 8 1 3 Processor 3 | . . . . . . . . . 4 7 7 . 7 11 7 6 6 6 3 . 1 2 8 5 2 13 14 Hackware 8 | . . . . . . . 9 12 7 8 7 7 6 6 11 13 8 6 4 4 18 29 19 21 17 4 3 Protection 1 | . . . . . . 4 1 . . . . . 1 2 . . . . 2 4 2 . . . . . . Energy Cannon 5 | . 12 28 28 28 17 5 . . 1 . 4 . . . 2 3 . . . 2 1 4 3 7 1 2 . Ballistic Gun 1 | . 7 . . . . 3 . . . . . . . . . 3 13 5 3 3 2 . 1 . 2 . 2 Impact Weapon 1 | . . . . . . . 9 11 5 5 3 7 5 1 . . . . . . . . . . . . . Slashing Weapon 1 | . . . . . . 8 6 . 4 6 3 . 4 . . . . . . . . . . . . . . Piercing Weapon 1 | . . . . . . . . . . . . . . 5 2 1 . . 7 4 1 1 1 . 1 . . Naked Turns 24 | . . . . . . . . . . . . . . . . . . . 4 . . . . . . . 20 Heaviest Build 143 | 10 30 30 93 93 113 112 110 113 117 60 72 70 73 72 74 72 79 79 119 130 143 81 92 97 98 19 12 Greatest Support 96 | 20 40 20 40 20 40 40 40 40 40 24 24 24 68 68 80 96 96 12 30 58 57 24 64 64 64 36 17 Greatest Overweight (x) 29 | . 1 1 4 4 10 8 8 9 10 2 2 2 4 2 6 2 6 6 6 4 5 3 29 1 2 1 1 Average Overweight (x) 2 | . . 1 1 4 5 3 3 4 1 1 2 2 1 1 2 . 1 5 5 3 1 3 1 1 . . . Largest Inventory Capacity 44 | 6 10 10 24 24 24 44 44 28 28 16 16 16 16 16 16 16 18 18 24 24 24 18 18 18 18 4 4 Average Capacity 18 | 6 9 10 22 24 24 24 24 24 16 14 16 16 16 16 16 16 16 18 19 24 15 18 18 18 16 4 4 Most Carried 24 | 6 10 10 16 16 24 24 24 24 12 16 16 15 16 16 16 16 16 17 21 24 24 18 18 18 18 4 4 Average Carried 16 | 5 8 10 13 16 22 22 23 20 9 13 15 15 15 15 14 14 13 16 15 22 14 17 16 16 13 3 4 Final Capacity 28 | 6 10 10 24 24 24 24 24 28 14 16 16 16 16 16 16 16 18 18 24 24 18 18 18 18 4 4 4 Final Carried 24 | 6 10 10 16 16 24 24 23 11 12 16 16 15 16 14 16 14 15 15 13 24 18 18 16 18 4 4 4 Class Distribution -------------------- 40% | Scavenger-Mutant 22% | Bothacker-Mutant 13% | Hauler-Mutant 8% | Mutant 6% | Derelict-Mutant 5% | Botlord-Mutant Dominant Class ---------------- Mutant | -10/Materials Mutant | -10/Mines Hauler-Mutant | -10/Exiles Hauler-Mutant | -9/Mines Scavenger-Mutant | -8/Materials Scavenger-Mutant | -8/Garrison Bothacker-Mutant | -8/Materials Bothacker-Mutant | -7/Factory Scavenger-Mutant | -7/Garrison Bothacker-Mutant | -7/Factory Bothacker-Mutant | -7/Lower Caves Bothacker-Mutant | -7/Lower Caves Bothacker-Mutant | -6/Factory Scavenger-Mutant | -6/Garrison Scavenger-Mutant | -6/Factory Scavenger-Mutant | -6/Lower Caves Scavenger-Mutant | -6/Lower Caves Derelict-Mutant | -6/Data Miner Derelict-Mutant | -5/Proximity Caves Scavenger-Mutant | -5/Factory Bothacker-Mutant | -5/Garrison Botlord-Mutant | -5/Factory Bothacker-Mutant | -5/Extension Bothacker-Mutant | -4/Factory Bothacker-Mutant | -4/Garrison Mutant | -3/Research Mutant | -3/Testing Resources | -11 -10 -10 -10 -9 -8 -8 -8 -7 -7 -7 -7 -7 -6 -6 -6 -6 -6 -6 -5 -5 -5 -5 -5 -4 -4 -3 -3 ----------- Run | Scr Mat Min Exi Min Mat Gar Mat Fac Gar Fac Low Low Fac Gar Fac Low Low Dat Pro Fac Gar Fac Ext Fac Gar Res Tes Matter Collected 10470 | 232 415 . 30 . 1185 521 463 260 214 281 237 2 668 702 284 523 196 . 502 843 1609 . 693 . 297 164 149 Remotely . | . . . . . . . . . . . . . . . . . . . . . . . . . . . . Salvage Created 12544 | 79 359 . . . 2375 1003 640 225 588 207 312 19 538 1557 355 328 224 . 255 1249 1293 . 659 . 279 . . Parts 554 | 6 13 . . . 110 59 41 10 19 8 7 . 14 45 29 12 10 . 11 53 70 . 24 . 13 . . Haulers Intercepted 11 | . 1 . . . 6 . . 1 . 2 . . . . . . . . . 1 . . . . . . . Recyclers Shooed 10 | . 2 . . . . . . . . . . . . . . . . . . 2 . . 6 . . . . Parts Field Recycled . | . . . . . . . . . . . . . . . . . . . . . . . . . . . . Retrieved Matter . | . . . . . . . . . . . . . . . . . . . . . . . . . . . . Parts Self-Destructed 52 | . . . . . . . . . . . 3 . . . . 17 10 . 22 . . . . . . . . Prevented 3 | . . . . . . . . . . . . . . . . 2 . . 1 . . . . . . . . Kills | -11 -10 -10 -10 -9 -8 -8 -8 -7 -7 -7 -7 -7 -6 -6 -6 -6 -6 -6 -5 -5 -5 -5 -5 -4 -4 -3 -3 ------- Run | Scr Mat Min Exi Min Mat Gar Mat Fac Gar Fac Low Low Fac Gar Fac Low Low Dat Pro Fac Gar Fac Ext Fac Gar Res Tes Combat Hostiles Destroyed 220 | . 4 . . . 34 20 16 2 14 1 7 1 8 29 7 8 7 . 4 14 30 . 5 . 9 . . Melee 41 | . . . . . . 4 14 2 2 . . . 3 14 . . . . 1 . . . 1 . . . . Guns 61 | . 2 . . . . 6 . . . . . . 1 6 1 5 7 . 3 13 14 . 1 . 2 . . Cannons 56 | . 2 . . . 23 8 . . 1 1 1 . 1 . 1 3 . . . . 8 . . . 7 . . AOE 52 | . . . . . 6 2 2 . 11 . 6 1 . 8 5 . . . . . 8 . 3 . . . . Classes Destroyed 16 | 2 3 . . . 6 . . 1 . . 1 . . . 1 . . . . . 2 . . . . . . Worker 5 | . . . . . 1 . . . . . . . . . . . . . . 2 . . 2 . . . . Builder 5 | . . . . . 1 . . . . . . . 2 . 1 . . . . 1 . . . . . . . Tunneler 2 | 1 . . . . 1 . . . . . . . . . . . . . . . . . . . . . . Hauler 11 | . 1 . . . 6 . . 1 . 2 . . . . . . . . . 1 . . . . . . . Recycler 11 | 1 1 . . . 2 . . 1 . . . . . . . . . . . 2 . . 4 . . . . Watcher 7 | . 1 . . . 4 . 1 . . 1 . . . . . . . . . . . . . . . . . Swarmer 70 | . . . . . 4 8 6 . 7 . 3 . . 4 2 4 6 . 1 . 16 . 3 . 6 . . Grunt 76 | . 4 . . . 19 7 4 . 6 . 2 . 4 11 . 3 . . 1 7 5 . 2 . 1 . . Brawler 9 | . . . . . 1 1 . . . . 1 . 1 1 . . . . 1 . 3 . . . . . . Duelist 10 | . . . . . 2 1 . . 1 . . . 1 5 . . . . . . . . . . . . . Protector 1 | . . . . . . . . . . . . . . . . . . . . . 1 . . . . . . Sentry 30 | . . . . . 8 3 6 . . 1 . . 1 8 . 1 1 . . . . . . . 1 . . Demolisher 1 | . . . . . . . . . . . . . . . . . . . . . 1 . . . . . . Hunter 5 | . . . . . . . . . . . . . . . 4 . . . . 1 . . . . . . . Programmer 14 | . . . . . . . . 2 . . . 1 1 . 1 . . . . 6 3 . . . . . . Behemoth 4 | . . . . . . . . . . . 1 . . . . . . . 1 . 1 . . . 1 . . Best Kill Streak 11 | 2 3 . . . 7 11 2 1 8 1 3 1 2 6 4 3 3 . 2 5 4 . 3 . 5 . . Combat Bots Only 11 | . 2 . . . 5 11 2 1 8 1 3 1 2 6 3 3 3 . 2 4 4 . 3 . 5 . . Max Kills in Single Turn 7 | 1 1 . . . 2 1 2 1 7 1 3 1 1 2 2 1 1 . 1 3 3 . 2 . 1 . . Gunslinging . | . . . . . . . . . . . . . . . . . . . . . . . . . . . . Exploded 7 | . . . . . 1 1 2 . 7 . 3 1 . 2 2 . . . . . 3 . 2 . . . . Melee 1 | . . . . . . 1 1 1 1 . . . 1 1 . . . . 1 . . . 1 . . . . Uniques/NPCs Destroyed . | . . . . . . . . . . . . . . . . . . . . . . . . . . . . Combat | -11 -10 -10 -10 -9 -8 -8 -8 -7 -7 -7 -7 -7 -6 -6 -6 -6 -6 -6 -5 -5 -5 -5 -5 -4 -4 -3 -3 -------- Run | Scr Mat Min Exi Min Mat Gar Mat Fac Gar Fac Low Low Fac Gar Fac Low Low Dat Pro Fac Gar Fac Ext Fac Gar Res Tes Damage Taken 25787 | . 226 . . . 1765 1990 1337 182 588 102 619 41 912 2330 698 1231 245 . 1591 1859 2597 . 1579 27 3384 761 1723 Core 4476 | . 57 . . . 193 177 152 14 90 . . . 100 262 83 76 5 . 200 201 411 . 244 . 904 367 940 Absorbed by Shields 25 | . . . . . . . . . . . . . . . . . . . . . . . 25 . . . . Reduced by Siege Mode 69 | . . . . . . . . . . . . . . . . . . . . . . . . . 69 . . Core Remaining (%) 45 | 100 . . . 77 . . 5 . . . . 85 . . . . . . 14 . . . 14 . 21 . . Volleys Fired 627 | 2 28 . . . 98 31 3 5 6 8 12 2 10 33 26 44 13 . 16 68 112 22 43 9 30 4 2 Largest 2 | 2 2 . . . 2 2 1 1 1 1 2 1 2 2 2 2 2 . 2 2 2 2 2 2 2 1 1 Hottest 188 | 60 112 . . . 119 112 33 30 69 69 90 45 138 140 159 165 58 . 165 146 180 180 180 188 171 113 38 Shots Fired 1054 | 4 43 . . . 190 59 3 5 6 8 16 2 17 53 38 69 26 . 35 116 202 23 66 10 57 4 2 Gun 483 | 4 26 . . . . 30 . . . . . . 7 41 20 40 26 . 34 86 138 . 15 . 14 . 2 Cannon 475 | . 17 . . . 185 25 . . 3 2 5 . 6 . 6 29 . . 1 30 48 23 41 9 41 4 . Launcher 62 | . . . . . . 4 3 . 3 . 11 2 1 12 12 . . . . . 10 . 2 . 2 . . Special 34 | . . . . . 5 . . 5 . 6 . . 3 . . . . . . . 6 . 8 1 . . . Kinetic 410 | 2 15 . . . . 28 . . . . . . . . . 17 26 . 24 75 149 . 36 . 36 . 2 Thermal 271 | 2 11 . . . 5 2 . . . . . . 7 32 26 44 . . 11 19 37 23 20 9 19 4 . Explosive 50 | . . . . . . 4 3 . 3 . 11 2 . 12 1 . . . . . 10 . 2 . 2 . . Electromagnetic 294 | . 17 . . . 185 25 . . 3 2 5 . 7 9 11 8 . . . 22 . . . . . . . Robot Hit Streak 29 | 3 5 . . . 29 13 . 5 7 5 18 1 10 10 6 10 12 . 5 11 12 . 6 2 8 . . Robot Miss Streak 7 | . 4 . . . 6 7 1 . 3 1 3 2 2 4 3 6 3 . 4 6 4 . 4 1 3 . . Penetration Max 1 | . . . . . . . . . . . . . . . . . 1 . . 1 1 . 1 . . . . Secondary Targets 6 | . 1 . . . . 1 . . . . . . . 2 . . . . . . 2 . . . . . . Max Gunslinging Chain 1 | . 1 . . . . 1 . . . . . . . 1 . . . . . . 1 . . . . . . Shots Hit Robots 871 | 3 25 . . . 143 57 52 12 20 17 21 1 48 98 18 36 16 . 29 62 133 . 44 2 34 . . Core Hits 485 | 3 11 . . . 67 35 21 3 39 4 23 4 12 82 14 14 8 . 11 34 62 . 26 . 12 . . Critical Hits 44 | . 1 . . . 2 . . . 1 . . . . 4 . . . . 4 13 10 . 5 . 4 . . Critical Kills 13 | . . . . . . . . . . . . . . 2 . . . . 1 5 3 . . . 2 . . Critical Parts Destroyed 23 | . . . . . 1 . . . 1 . . . . 2 . . . . 1 8 6 . 3 . 1 . . Melee Attacks 358 | . . . . . 3 32 71 21 26 16 12 . 50 69 2 . . . 11 7 19 13 5 . 1 . . Impact 123 | . . . . . . . 35 21 3 4 4 . 42 14 . . . . . . . . . . . . . Slashing 135 | . . . . . 3 30 34 . 23 12 8 . 8 17 . . . . . . . . . . . . . Piercing 96 | . . . . . . . . . . . . . . 38 2 . . . 11 7 19 13 5 . 1 . . Sneak Attacks 37 | . . . . . 1 . 6 3 . 2 . . 8 17 . . . . . . . . . . . . . Combat Hostiles 8 | . . . . . . . 5 . . . . . 3 . . . . . . . . . . . . . . Follow-up Attacks 38 | . . . . . . 2 9 1 3 3 . . 8 10 . . . . 2 . . . . . . . . Damage Inflicted 34896 | 34 554 . . . 4004 2208 1947 434 1801 576 1877 89 1970 5590 716 807 392 . 717 1950 5797 . 1977 . 1413 34 9 Guns 7130 | 34 187 . . . . 235 . . . . . . 97 620 266 605 392 . 390 1769 2008 . 336 . 191 . . Cannons 8028 | . 310 . . . 3227 332 . . 75 51 99 . 143 . 65 202 . . . 181 1188 . 1064 . 1091 . . Explosions 7061 | . 57 . . . 663 438 53 . 894 . 988 89 5 1316 385 . . . . . 1573 . 469 . 131 . . Melee 12634 | . . . . . 114 1203 1894 434 832 525 790 . 1725 3654 . . . . 327 . 1028 . 108 . . . . Ramming 43 | . . . . . . . . . . . . . . . . . . . . . . . . . . 34 9 Kinetic 6837 | 10 119 . . . . 207 . . . . . . . . . 324 392 . 282 1634 2254 . 764 . 851 . . Thermal 4424 | 24 125 . . . 563 233 . . . . . . 97 528 331 406 . . 108 . 942 . 636 . 431 . . Explosive 5915 | . . . . . 100 233 53 . 894 . 988 89 . 1316 69 . . . . . 1573 . 469 . 131 . . Electromagnetic 5043 | . 310 . . . 3227 332 . . 75 51 99 . 148 92 316 77 . . . 316 . . . . . . . Impact 3271 | . . . . . . . 718 434 172 210 . . 1339 398 . . . . . . . . . . . . . Slashing 6532 | . . . . . 114 1203 1176 . 660 315 790 . 386 1888 . . . . . . . . . . . . . Piercing 2831 | . . . . . . . . . . . . . . 1368 . . . . 327 . 1028 . 108 . . . . Highest Corruption 11 | . . . . . . . . 3 3 5 5 5 2 2 7 7 7 7 11 3 6 6 6 . 3 5 5 Average Corruption 5 | . . . . . . . . 2 3 3 5 5 2 2 3 7 7 7 10 1 4 6 6 . 2 4 5 Corruption Purged 3 | . . . . . . . . . . . . . . . . . . . . 3 . . . . . . . Effects 331 | . . . . . . . . 9 7 16 11 1 1 9 16 46 18 4 67 5 69 20 25 . . 3 4 Message Errors 82 | . . . . . . . . 4 4 3 2 1 1 2 5 10 5 1 13 . 16 7 6 . . 1 1 Matter Fused 64 | . . . . . . . . 1 1 6 3 . . . 1 9 6 . 12 . 15 3 4 . . 2 1 Heat Flow Errors 35 | . . . . . . . . 1 . 2 2 . . 1 4 8 1 . 9 1 3 2 1 . . . . Energy Discharges 31 | . . . . . . . . . 1 3 2 . . 2 2 2 1 1 6 1 6 1 2 . . . 1 Parts Rejected 3 | . . . . . . . . . . . . . . . . . . . 1 . 1 . . . . . 1 Data Loss (minor) 29 | . . . . . . . . 1 1 2 . . . 1 1 7 2 2 6 1 3 . 2 . . . . Data Loss (major) 12 | . . . . . . . . . . . 1 . . . 1 2 2 . 3 . 2 1 . . . . . Misfires 12 | . . . . . . . . . . . 1 . . . . 1 . . 4 . 3 1 2 . . . . Alerts 1 | . . . . . . . . . . . . . . . . . . . 1 . . . . . . . . Misdirections 7 | . . . . . . . . . . . . . . . . . . . 7 . . . . . . . . Targeting Errors 48 | . . . . . . . . 2 . . . . . 3 2 5 1 . 4 1 19 4 7 . . . . Weapon Failures 7 | . . . . . . . . . . . . . . . . 2 . . 1 1 1 1 1 . . . . Overload Shots . | . . . . . . . . . . . . . . . . . . . . . . . . . . . . Overflow Damage 2258 | . . . . . 102 111 190 102 84 63 435 . 236 396 1 18 . . . . 384 . 89 . 47 . . Projectiles 247 | . . . . . 45 . . . . . . . 17 . 1 18 . . . . 116 . 3 . 47 . . Explosions 267 | . . . . . 57 92 5 . 3 . . . . 23 . . . . . . 1 . 86 . . . . Melee 1744 | . . . . . . 19 185 102 81 63 435 . 219 373 . . . . . . 267 . . . . . . Knockbacks 13 | . . . . . . . 4 1 2 . . . 2 . . . . . . . . . . . 3 1 . Impact 10 | . . . . . . . 4 1 2 . . . 2 . . . . . . . . . . . . 1 . Kinetic 3 | . . . . . . . . . . . . . . . . . . . . . . . . . 3 . . Secondary . | . . . . . . . . . . . . . . . . . . . . . . . . . . . . Self-Inflicted Damage 921 | . . . . . 233 127 45 . 52 . 89 26 . 234 . . . . . . 95 . . . . 16 4 Shots 31 | . . . . . 5 4 1 . 3 . 4 2 . 10 . . . . . . 2 . . . . . . Rammed 4 | . . . . . . . . . . . . . . . . . . . . . . . . . . 2 2 Targets Rammed 4 | . . . . . . . . . . . . . . . . . . . . . . . . . . 2 2 Kicked . | . . . . . . . . . . . . . . . . . . . . . . . . . . . . Crushed . | . . . . . . . . . . . . . . . . . . . . . . . . . . . . Highest Temperature 456 | 20 184 . . . 243 136 5 105 28 212 234 . 5 398 294 306 104 . 243 57 177 162 456 45 252 72 . Average Temperature 80 | 15 65 . . . 60 36 5 35 15 71 94 . 3 144 82 82 58 . 69 22 77 27 210 22 73 35 . Received Heat Transfer 4038 | . 114 . . . 639 369 270 18 . 36 75 . 300 549 . 153 . . 120 189 291 . 222 . 516 36 141 Effects 13 | . . . . . 2 . . . . . . . . . . . . . . . . . 10 . 1 . . Shutdowns 2 | . . . . . . . . . . . . . . . . . . . . . . . 2 . . . . Energy Bleed 5 | . . . . . 2 . . . . . . . . . . . . . . . . . 2 . 1 . . Damage (minor) 1 | . . . . . . . . . . . . . . . . . . . . . . . 1 . . . . Damage (major) 5 | . . . . . . . . . . . . . . . . . . . . . . . 5 . . . . Siege Activations 1 | . . . . . . . . . . . . . . . . . . . . . . . . . 1 . . Total Turns 12 | . . . . . . . . . . . . . . . . . . . . . . . . . 12 . . Longest Duration 12 | . . . . . . . . . . . . . . . . . . . . . . . . . 12 . . Robots Corrupted 9 | . . . . . 7 . . . . . . . . . . . . . . 2 . . . . . . . Combat Hostiles 6 | . . . . . 5 . . . . . . . . . . . . . . 1 . . . . . . . Parts Fried 51 | . 6 . . . 27 . . 2 2 . . . 6 1 3 . . . . 4 . . . . . . . Impact Corruptions 15 | . . . . . . . 3 2 1 1 . . 7 1 . . . . . . . . . . . . . Robots Melted . | . . . . . . . . . . . . . . . . . . . . . . . . . . . . Combat Hostiles . | . . . . . . . . . . . . . . . . . . . . . . . . . . . . Parts Melted 4 | . . . . . 1 . . . . . . . . 1 2 . . . . . . . . . . . . Heat Transferred 5259 | 50 250 . . . 650 324 . . . . . . 185 1067 548 750 . . 199 . 600 . 374 . 262 . . Parts Sabotaged . | . . . . . . . . . . . . . . . . . . . . . . . . . . . . Parts Stolen . | . . . . . . . . . . . . . . . . . . . . . . . . . . . . Parts Stripped . | . . . . . . . . . . . . . . . . . . . . . . . . . . . . Power Chain Reactions 13 | . 1 . . . 10 1 . . . . . . . . 1 . . . . . . . . . . . . Missiles Intercepted . | . . . . . . . . . . . . . . . . . . . . . . . . . . . . Alert | -11 -10 -10 -10 -9 -8 -8 -8 -7 -7 -7 -7 -7 -6 -6 -6 -6 -6 -6 -5 -5 -5 -5 -5 -4 -4 -3 -3 ------- Run | Scr Mat Min Exi Min Mat Gar Mat Fac Gar Fac Low Low Fac Gar Fac Low Low Dat Pro Fac Gar Fac Ext Fac Gar Res Tes Peak Influence 1482 | 10 161 10 . . 796 1221 881 237 389 232 . . 179 794 573 . . . . 308 1482 871 818 419 522 263 141 Initial 777 | . 6 10 . . . 517 594 215 . 203 . . 18 125 416 . . . . . 168 777 343 390 293 245 91 Average 413 | 9 58 10 . . 441 895 676 139 288 123 . . 65 541 426 . . . . 70 727 751 454 406 431 222 108 Maximum Alert Level 4 | . . . . . 3 4 3 1 1 1 . . . 3 2 . . . . 1 4 3 3 2 2 1 . Low Security (%) 27 | 100 100 100 . 100 4 . . 51 23 50 . . 100 9 . . . . . 82 1 . . . . 18 100 Level 1 22 | . . . . . 37 . . 48 76 49 . . . 15 6 . . . . 17 18 . 19 13 25 81 . Level 2 32 | . . . . . 50 31 54 . . . . . . 40 93 . . . . . 42 37 74 86 75 . . Level 3 12 | . . . . . 7 45 45 . . . . . . 34 . . . . . . 9 62 5 . . . . Level 4 4 | . . . . . . 22 . . . . . . . . . . . . . . 27 . . . . . . Level 5 . | . . . . . . . . . . . . . . . . . . . . . . . . . . . . High Security . | . . . . . . . . . . . . . . . . . . . . . . . . . . . . Max Security . | . . . . . . . . . . . . . . . . . . . . . . . . . . . . Squads Dispatched 31 | . . . . . 6 . 1 3 . 2 . . 8 . 1 . . . . 6 . . 2 . . 2 . Investigation . | . . . . . . . . . . . . . . . . . . . . . . . . . . . . Extermination 8 | . . . . . . . . 1 . 1 . . 2 . . . . . . 3 . . . . . 1 . Reinforcement 12 | . . . . . 2 . . 2 . 1 . . 3 . . . . . . 2 . . 1 . . 1 . Assault 4 | . . . . . 2 . 1 . . . . . . . . . . . . . . . 1 . . . . Garrison 7 | . . . . . 2 . . . . . . . 3 . 1 . . . . 1 . . . . . . . Intercept . | . . . . . . . . . . . . . . . . . . . . . . . . . . . . Construction Impeded 2 | . . . . . 1 . . . . . . . 1 . . . . . . . . . . . . . . Haulers Reinforced 4 | . . . . . . . . 1 . 1 . . . . . . . . . 2 . . . . . . . Stealth | -11 -10 -10 -10 -9 -8 -8 -8 -7 -7 -7 -7 -7 -6 -6 -6 -6 -6 -6 -5 -5 -5 -5 -5 -4 -4 -3 -3 --------- Run | Scr Mat Min Exi Min Mat Gar Mat Fac Gar Fac Low Low Fac Gar Fac Low Low Dat Pro Fac Gar Fac Ext Fac Gar Res Tes Distress Signals 4 | . . . . . 1 . . . . . . . . . . . . . . . . . 2 . . . 1 Communications Jammed 197 | . . . . . . . 43 . . . . . . . . . . . . . . . 154 . . . . Distress Signals 197 | . . . . . . . 43 . . . . . . . . . . . . . . . 154 . . . . Times Spotted 393 | . 7 . . . 57 30 24 11 17 5 7 1 18 22 7 13 7 . 12 21 41 2 41 1 23 10 16 Peak Tracking Total 15 | . 2 . . . 8 9 5 3 7 2 3 1 4 4 4 3 3 . 4 6 5 1 14 1 11 6 15 Tactical Retreats 43 | . 1 . . . 10 7 2 . . . . . 3 1 . 4 . . . 1 4 . 3 . 4 3 . Traps | -11 -10 -10 -10 -9 -8 -8 -8 -7 -7 -7 -7 -7 -6 -6 -6 -6 -6 -6 -5 -5 -5 -5 -5 -4 -4 -3 -3 ------- Run | Scr Mat Min Exi Min Mat Gar Mat Fac Gar Fac Low Low Fac Gar Fac Low Low Dat Pro Fac Gar Fac Ext Fac Gar Res Tes Traps Triggered 33 | . 1 . . . 1 2 1 1 2 1 . . . 9 1 . . . . . 8 1 1 1 . . 3 Indirectly . | . . . . . . . . . . . . . . . . . . . . . . . . . . . . Trap Hack Attempts . | . . . . . . . . . . . . . . . . . . . . . . . . . . . . Triggered . | . . . . . . . . . . . . . . . . . . . . . . . . . . . . Disarmed 4 | . . . . . 4 . . . . . . . . . . . . . . . . . . . . . . Reprogrammed . | . . . . . . . . . . . . . . . . . . . . . . . . . . . . Reused . | . . . . . . . . . . . . . . . . . . . . . . . . . . . . Traps Extracted . | . . . . . . . . . . . . . . . . . . . . . . . . . . . . Installed . | . . . . . . . . . . . . . . . . . . . . . . . . . . . . Triggered 2 | . . . . . 1 . . . . . . . . . . . . . 1 . . . . . . . . Machines | -11 -10 -10 -10 -9 -8 -8 -8 -7 -7 -7 -7 -7 -6 -6 -6 -6 -6 -6 -5 -5 -5 -5 -5 -4 -4 -3 -3 ---------- Run | Scr Mat Min Exi Min Mat Gar Mat Fac Gar Fac Low Low Fac Gar Fac Low Low Dat Pro Fac Gar Fac Ext Fac Gar Res Tes Machines Disabled 29 | . 1 . . . 2 2 1 . 1 . . . . 1 . . . . . 2 9 . 6 . 2 . 2 Max in Single Turn 2 | . 1 . . . 1 1 1 . 1 . . . . 1 . . . . . 1 2 . 2 . 1 . 1 Garrison Access 1 | . . . . . . . . . . . . . . . 1 . . . . . . . . . . . . Garrison Relay 8 | . . . . . . 2 . . 1 . . . . 1 . . . . . . 3 . . . 1 . . Phase Generator 1 | . . . . . . . . . . . . . . . . . . . . . 1 . . . . . . Machines Sabotaged . | . . . . . . . . . . . . . . . . . . . . . . . . . . . . Garrisons Compromised . | . . . . . . . . . . . . . . . . . . . . . . . . . . . . Overloaded Fab Kills . | . . . . . . . . . . . . . . . . . . . . . . . . . . . . Fab Network Shutdowns . | . . . . . . . . . . . . . . . . . . . . . . . . . . . . Hacking | -11 -10 -10 -10 -9 -8 -8 -8 -7 -7 -7 -7 -7 -6 -6 -6 -6 -6 -6 -5 -5 -5 -5 -5 -4 -4 -3 -3 --------- Run | Scr Mat Min Exi Min Mat Gar Mat Fac Gar Fac Low Low Fac Gar Fac Low Low Dat Pro Fac Gar Fac Ext Fac Gar Res Tes Machines Accessed 55 | . 5 . . . 11 . 7 3 . 4 . . 2 . 7 . . 4 . 6 . 1 2 2 . 1 . Terminals 26 | . 4 . . . 6 . 5 . . 1 . . 1 . 4 . . . . 3 . 1 1 . . . . Fabricators 4 | . . . . . . . . 1 . 1 . . . . 1 . . . . . . . . . . 1 . Repair Stations 4 | . . . . . . . 1 1 . 1 . . . . . . . . . 1 . . . . . . . Recycling Units 6 | . 1 . . . 2 . . . . . . . . . 1 . . . . . . . 1 1 . . . Scanalyzers 4 | . . . . . 2 . 1 . . . . . . . . . . . . 1 . . . . . . . Garrison Access 7 | . . . . . 1 . . 1 . 1 . . 1 . 1 . . . . 1 . . . 1 . . . Total Hacks 185 | . 11 . . . 44 . 38 5 . 13 . . 3 . 16 . . 29 . 14 . 3 3 4 . 2 . Successful 128 | . 8 . . . 30 . 26 1 . 8 . . 2 . 6 . . 29 . 8 . 3 3 3 . 1 . Failed 57 | . 3 . . . 14 . 12 4 . 5 . . 1 . 10 . . . . 6 . . . 1 . 1 . Catastrophic 8 | . . . . . 1 . 3 . . . . . . . 3 . . . . . . . . 1 . . . Database Lockouts . | . . . . . . . . . . . . . . . . . . . . . . . . . . . . Manual 59 | . 7 . . . 5 . 16 . . 6 . . 2 . 12 . . . . 4 . 3 2 2 . . . Terminals 81 | . 9 . . . 20 . 25 . . 6 . . 2 . 10 . . . . 5 . 3 1 . . . . Fabricators 9 | . . . . . . . . 2 . 2 . . . . 3 . . . . . . . . . . 2 . Repair Stations 14 | . . . . . . . 3 2 . 4 . . . . . . . . . 5 . . . . . . . Recycling Units 12 | . 2 . . . 4 . . . . . . . . . 2 . . . . . . . 2 2 . . . Scanalyzers 32 | . . . . . 19 . 10 . . . . . . . . . . . . 3 . . . . . . . Garrison Access 8 | . . . . . 1 . . 1 . 1 . . 1 . 1 . . . . 1 . . . 2 . . . Terminal Hacks 54 | . 4 . . . 8 . 10 . . 1 . . . . . . . 29 . 1 . . 1 . . . . Record 12 | . . . . . . . 1 . . . . . . . . . . 11 . . . . . . . . . Part Schematic 9 | . . . . . . . . . . . . . . . . . . 9 . . . . . . . . . Robot Schematic 6 | . . . . . . . . . . . . . . . . . . 6 . . . . . . . . . Prototype ID Bank 5 | . 1 . . . . . 1 . . . . . . . . . . 3 . . . . . . . . . Open Door 2 | . . . . . . . . . . . . . . . . . . . . 1 . . 1 . . . . Level Access Points 1 | . . . . . . . 1 . . . . . . . . . . . . . . . . . . . . Branch Access Points 3 | . 1 . . . 1 . 1 . . . . . . . . . . . . . . . . . . . . Terminal Index 2 | . . . . . . . 1 . . 1 . . . . . . . . . . . . . . . . . Alert Level 3 | . 1 . . . 1 . 1 . . . . . . . . . . . . . . . . . . . . Unreport Threat 2 | . . . . . . . 2 . . . . . . . . . . . . . . . . . . . . Locate Traps 5 | . 1 . . . 3 . 1 . . . . . . . . . . . . . . . . . . . . Disarm Traps 1 | . . . . . 1 . . . . . . . . . . . . . . . . . . . . . . Zone Layout 3 | . . . . . 2 . 1 . . . . . . . . . . . . . . . . . . . . Fabricator Hacks 2 | . . . . . . . . . . . . . . . 1 . . . . . . . . . . 1 . Network Status 1 | . . . . . . . . . . . . . . . 1 . . . . . . . . . . . . Load Schematic 1 | . . . . . . . . . . . . . . . . . . . . . . . . . . 1 . Repair Station Hacks 9 | . . . . . . . 1 . . 4 . . . . . . . . . 4 . . . . . . . Scan Component 5 | . . . . . . . 1 . . 2 . . . . . . . . . 2 . . . . . . . Repair 4 | . . . . . . . . . . 2 . . . . . . . . . 2 . . . . . . . Recycling Unit Hacks 3 | . 1 . . . 2 . . . . . . . . . . . . . . . . . . . . . . Report Inventory 3 | . 1 . . . 2 . . . . . . . . . . . . . . . . . . . . . . Scanalyzer 30 | . . . . . 18 . 10 . . . . . . . . . . . . 2 . . . . . . . Insert Component 15 | . . . . . 9 . 5 . . . . . . . . . . . . 1 . . . . . . . Analyze 15 | . . . . . 9 . 5 . . . . . . . . . . . . 1 . . . . . . . Garrison Access Hacks 8 | . . . . . 1 . . 1 . 1 . . 1 . 1 . . . . 1 . . . 2 . . . Unlock Access 6 | . . . . . 1 . . 1 . 1 . . 1 . . . . . . 1 . . . 1 . . . Seal Access 1 | . . . . . . . . . . . . . . . 1 . . . . . . . . . . . . Coupler Status 1 | . . . . . . . . . . . . . . . . . . . . . . . . 1 . . . Unauthorized Hacks 22 | . 3 . . . 1 . 5 . . 2 . . 1 . 4 . . . . . . 3 2 1 . . . Terminals 18 | . 2 . . . 1 . 5 . . 2 . . 1 . 4 . . . . . . 3 . . . . . Track 3 | . . . . . . . 1 . . . . . . . 1 . . . . . . 1 . . . . . Botnet 9 | . 1 . . . . . 3 . . 1 . . 1 . 2 . . . . . . 1 . . . . . Operators 6 | . 1 . . . 1 . 1 . . 1 . . . . 1 . . . . . . 1 . . . . . Fabricators . | . . . . . . . . . . . . . . . . . . . . . . . . . . . . Repair Stations . | . . . . . . . . . . . . . . . . . . . . . . . . . . . . Recycling Units 4 | . 1 . . . . . . . . . . . . . . . . . . . . . 2 1 . . . Reject 2 | . . . . . . . . . . . . . . . . . . . . . . . 1 1 . . . Mask 2 | . 1 . . . . . . . . . . . . . . . . . . . . . 1 . . . . Scanalyzers . | . . . . . . . . . . . . . . . . . . . . . . . . . . . . Garrison Access . | . . . . . . . . . . . . . . . . . . . . . . . . . . . . Data Cores Recovered . | . . . . . . . . . . . . . . . . . . . . . . . . . . . . Used . | . . . . . . . . . . . . . . . . . . . . . . . . . . . . Hacking Detections 43 | . 4 . . . 9 . 7 2 . 3 . . 1 . 6 . . . . 5 . 1 2 2 . 1 . Full Trace Events . | . . . . . . . . . . . . . . . . . . . . . . . . . . . . Feedback Events . | . . . . . . . . . . . . . . . . . . . . . . . . . . . . Feedback Blocked . | . . . . . . . . . . . . . . . . . . . . . . . . . . . . Robot Schematics Acquired 6 | . . . . . . . . . . . . . . . . . . 6 . . . . . . . . . Robots Built . | . . . . . . . . . . . . . . . . . . . . . . . . . . . . Matter . | . . . . . . . . . . . . . . . . . . . . . . . . . . . . Time . | . . . . . . . . . . . . . . . . . . . . . . . . . . . . Total Robot Build Rating . | . . . . . . . . . . . . . . . . . . . . . . . . . . . . Part Schematics Acquired 23 | . . . . . 8 . 5 . . . . . . . . . . 9 . 1 . . . . . . . Parts Built . | . . . . . . . . . . . . . . . . . . . . . . . . . . . . Matter . | . . . . . . . . . . . . . . . . . . . . . . . . . . . . Time . | . . . . . . . . . . . . . . . . . . . . . . . . . . . . Total Part Build Rating . | . . . . . . . . . . . . . . . . . . . . . . . . . . . . Parts Repaired 4 | . . . . . . . . . . 2 . . . . . . . . . 2 . . . . . . . Time 123 | . . . . . . . . . . 35 . . . . . . . . . 88 . . . . . . . Parts Recycled . | . . . . . . . . . . . . . . . . . . . . . . . . . . . . Recycled Matter . | . . . . . . . . . . . . . . . . . . . . . . . . . . . . Retrieved Matter . | . . . . . . . . . . . . . . . . . . . . . . . . . . . . Retrieved Components . | . . . . . . . . . . . . . . . . . . . . . . . . . . . . Parts Scanalyzed 14 | . . . . . 8 . 5 . . . . . . . . . . . . 1 . . . . . . . Part Schematics Acquired 14 | . . . . . 8 . 5 . . . . . . . . . . . . 1 . . . . . . . Parts Damaged . | . . . . . . . . . . . . . . . . . . . . . . . . . . . . Bothacking | -11 -10 -10 -10 -9 -8 -8 -8 -7 -7 -7 -7 -7 -6 -6 -6 -6 -6 -6 -5 -5 -5 -5 -5 -4 -4 -3 -3 ------------ Run | Scr Mat Min Exi Min Mat Gar Mat Fac Gar Fac Low Low Fac Gar Fac Low Low Dat Pro Fac Gar Fac Ext Fac Gar Res Tes Used RIF Installer 4 | . . . . . . 1 . . 1 . . . . 1 . . . . . . 1 . . . . . . Signal Jammer 1 | . . . . . . . . . 1 . . . . . . . . . . . . . . . . . . Patrol Navigation 1 | . . . . . . . . . . . . . . . . . . . . . 1 . . . . . . Watcher Feeds 1 | . . . . . . . . . . . . . . 1 . . . . . . . . . . . . . Robots Hacked 24 | . . . . . . . 1 5 . 3 . . 3 . . . . . . . 4 . 7 1 . . . Non-combat 2 | . . . . . . . . . . . . . . . . . . . . . . . 2 . . . . Combat 22 | . . . . . . . 1 5 . 3 . . 3 . . . . . . . 4 . 5 1 . . . Robot Hacks Applied 24 | . . . . . . . 1 5 . 3 . . 3 . . . . . . . 4 . 7 1 . . . parse_system 2 | . . . . . . . . 1 . . . . . . . . . . . . 1 . . . . . . drop_inventory 1 | . . . . . . . . . . . . . . . . . . . . . . . 1 . . . . wipe_record 1 | . . . . . . . 1 . . . . . . . . . . . . . . . . . . . . overwrite_iff 1 | . . . . . . . . . . . . . 1 . . . . . . . . . . . . . . streamctrl_high 2 | . . . . . . . . . . 2 . . . . . . . . . . . . . . . . . formatsys_low 1 | . . . . . . . . . . . . . . . . . . . . . . . 1 . . . . formatsys_high 16 | . . . . . . . . 4 . 1 . . 2 . . . . . . . 3 . 5 1 . . . Relay Couplers Released 32 | . . . . . . 8 . . 3 . . . . 5 . . . . . . 13 . . . 3 . . Machine Destruction 32 | . . . . . . 8 . . 3 . . . . 5 . . . . . . 13 . . . 3 . . Attached 19 | . . . . . . . 1 2 . 2 . . 2 . . . . . . . 6 . 3 1 2 . . Robots Rewired . | . . . . . . . . . . . . . . . . . . . . . . . . . . . . Allies Hacked . | . . . . . . . . . . . . . . . . . . . . . . . . . . . . Hacks Repelled . | . . . . . . . . . . . . . . . . . . . . . . . . . . . . Allies | -11 -10 -10 -10 -9 -8 -8 -8 -7 -7 -7 -7 -7 -6 -6 -6 -6 -6 -6 -5 -5 -5 -5 -5 -4 -4 -3 -3 -------- Run | Scr Mat Min Exi Min Mat Gar Mat Fac Gar Fac Low Low Fac Gar Fac Low Low Dat Pro Fac Gar Fac Ext Fac Gar Res Tes Total Allies 24 | . . . . . . . . 4 . 3 . . 3 . . . . . 1 . 3 . 9 1 . . . Largest Group 8 | . . . . . . . . 2 2 2 . . 2 . . . . . 1 . 3 2 8 1 1 . . Highest-Rated Group 396 | . . . . . . . . 60 57 48 . . 64 . . . . . 94 . 147 98 396 144 49 . . Highest-Rated Ally 156 | . . . . . . . . 30 30 32 . . 41 . . . . . 94 . 49 49 156 144 49 . . Total Orders 12 | . . . . . . . . . . . . . . . . . . . . . . 6 4 . 2 . . STAY 5 | . . . . . . . . . . . . . . . . . . . . . . 3 1 . 1 . . FOLLOW 5 | . . . . . . . . . . . . . . . . . . . . . . 3 1 . 1 . . DROP 1 | . . . . . . . . . . . . . . . . . . . . . . . 1 . . . . COLLECT 1 | . . . . . . . . . . . . . . . . . . . . . . . 1 . . . . Ally Attacks 206 | . . . . . . . . 12 5 5 . . 9 . . . . . 38 . 11 1 118 . 7 . . Total Damage 5372 | . . . . . . . . 308 94 74 . . 432 . . . . . 1127 . 514 . 2573 . 250 . . Kills 44 | . . . . . . . . 4 2 . . . 2 . . . . . 9 . 5 . 21 . 1 . . Allies Corrupted . | . . . . . . . . . . . . . . . . . . . . . . . . . . . . Allies Melted . | . . . . . . . . . . . . . . . . . . . . . . . . . . . . Intel | -11 -10 -10 -10 -9 -8 -8 -8 -7 -7 -7 -7 -7 -6 -6 -6 -6 -6 -6 -5 -5 -5 -5 -5 -4 -4 -3 -3 ------- Run | Scr Mat Min Exi Min Mat Gar Mat Fac Gar Fac Low Low Fac Gar Fac Low Low Dat Pro Fac Gar Fac Ext Fac Gar Res Tes Robot Analysis Total . | . . . . . . . . . . . . . . . . . . . . . . . . . . . . Derelict Logs Recovered 3 | . . . . . . . . . . . . . . . . 1 1 . 1 . . . . . . . . Drone Launches . | . . . . . . . . . . . . . . . . . . . . . . . . . . . . Drone Recoveries . | . . . . . . . . . . . . . . . . . . . . . . . . . . . . Exploration | -11 -10 -10 -10 -9 -8 -8 -8 -7 -7 -7 -7 -7 -6 -6 -6 -6 -6 -6 -5 -5 -5 -5 -5 -4 -4 -3 -3 ------------- Run | Scr Mat Min Exi Min Mat Gar Mat Fac Gar Fac Low Low Fac Gar Fac Low Low Dat Pro Fac Gar Fac Ext Fac Gar Res Tes Turns Passed 22520 | 27 502 15 1137 48 2775 885 1266 832 624 809 479 49 784 961 819 1341 780 145 1616 2105 2022 722 717 208 232 489 131 Spaces Moved 12921 | 16 362 17 623 41 1358 448 763 443 348 630 347 38 414 528 533 868 461 99 907 755 1164 438 392 148 125 504 151 Core 243 | . . . . . . . . . 2 . . . . . . . . . 8 . 24 . 1 . 58 109 41 Treads 2339 | . 83 . 513 . 74 2 2 74 92 . . . . . 6 180 334 . 159 750 62 . 8 . . . . Legs 1503 | . . . . . . . . . 1 . . . 277 211 236 688 . . . 5 85 . . . . . . Wheels 7561 | 16 279 17 110 41 1284 446 761 369 234 630 347 38 137 317 291 . 127 99 740 . 242 438 383 148 67 . . Hover 1059 | . . . . . . . . . . . . . . . . . . . . . 751 . . . . 198 110 Flight 216 | . . . . . . . . . 19 . . . . . . . . . . . . . . . . 197 . Fastest Speed 40 | 80 80 90 90 120 120 110 110 130 100 100 110 110 110 100 103 120 150 140 50 180 50 120 103 107 50 40 50 Average Speed 135 | 80 105 90 179 120 161 126 121 152 141 103 110 110 130 114 125 134 158 144 160 226 119 120 117 108 80 50 76 Slowest Speed 1500 | 80 160 90 200 120 260 260 200 200 550 110 110 110 150 180 210 180 162 150 230 240 260 120 1500 110 116 120 100 Overloaded Moves . | . . . . . . . . . . . . . . . . . . . . . . . . . . . . Propulsion Burnouts . | . . . . . . . . . . . . . . . . . . . . . . . . . . . . Robots Hopped 1 | . . . . . . . . . . . . . . . . . . . . . . . . . . 1 . Cave-ins Triggered . | . . . . . . . . . . . . . . . . . . . . . . . . . . . . Exploration Rate (%) 38 | 2 55 4 93 18 71 47 42 11 41 11 48 12 6 48 13 81 61 74 87 16 96 10 57 5 31 14 36 Regions Visited 27 Branch Regions 11 Pre-discovered Areas 1 | . . . . . . . . . . . . . . . . . . 1 . . . . . . . . . Known Exits Taken 11 | . 1 . . . 1 . 1 1 . 1 1 . 1 . . . . . . 1 . 1 1 1 . . . Unknown Exits Taken 11 | 1 . 1 1 1 . . . . . . . 1 . . 1 1 1 1 1 . . . . . . 1 . Scrap Searched 10 | . . . . . . . . . . . 2 . . . . 2 2 . 4 . . . . . . . . Spaces Dug 111 | . . . . . 7 . 10 5 . . 4 . 6 . 4 15 . . . 16 . 33 . 7 . 4 . Terrain Destroyed 1044 | . . . . . 54 21 27 5 39 . 206 57 6 177 22 21 . . 5 23 274 33 38 9 23 4 . Melee 37 | . . . . . 2 . 3 5 . . 4 . 6 . 1 . . . . 4 . 12 . . . . . Projectile 126 | . . . . . 5 . . . . . . . . . 4 21 . . 5 19 17 21 13 9 8 4 . AOE 881 | . . . . . 47 21 24 . 39 . 202 57 . 177 17 . . . . . 257 . 25 . 15 . . Terrain Rammed . | . . . . . . . . . . . . . . . . . . . . . . . . . . . . Walls Destroyed . | . . . . . . . . . . . . . . . . . . . . . . . . . . . . Machines Disabled . | . . . . . . . . . . . . . . . . . . . . . . . . . . . . Actions | -11 -10 -10 -10 -9 -8 -8 -8 -7 -7 -7 -7 -7 -6 -6 -6 -6 -6 -6 -5 -5 -5 -5 -5 -4 -4 -3 -3 --------- Run | Scr Mat Min Exi Min Mat Gar Mat Fac Gar Fac Low Low Fac Gar Fac Low Low Dat Pro Fac Gar Fac Ext Fac Gar Res Tes Total 16255 | 27 440 16 641 40 1727 667 990 562 427 756 398 40 571 739 632 969 482 102 1023 1013 1567 589 566 186 197 726 162 Wait 990 | . 19 . . . 96 39 88 35 7 64 12 . 31 16 16 20 2 . 10 96 67 105 65 5 7 190 . Move 12888 | 15 361 16 622 40 1357 446 762 442 346 629 346 37 413 526 532 867 460 98 906 754 1162 437 391 147 123 502 151 Hop 1 | . . . . . . . . . . . . . . . . . . . . . . . . . . 1 . Pick Up 284 | 3 10 . 11 . 38 30 14 10 12 9 3 . 13 13 7 6 2 . 33 21 29 1 9 6 2 2 . Fast Attach 192 | 1 4 . 1 . 10 3 5 2 8 8 1 . 14 17 11 5 1 . 6 17 36 3 13 3 1 17 5 Attach 158 | 1 1 . . . 10 17 6 7 3 1 1 . 7 9 4 6 2 2 20 10 23 . 10 4 14 . . Detach 53 | . . . . . . 4 1 2 1 . 1 . . 2 2 1 . 2 4 6 14 . 5 2 4 2 . Swap 337 | 1 8 . 4 . 76 25 32 14 6 12 6 1 20 13 18 15 2 . 11 20 22 4 17 3 6 1 . Drop 303 | 4 9 . 3 . 39 27 22 18 11 12 4 . 20 21 14 5 . . 9 16 33 4 8 7 9 6 2 Fire 627 | 2 28 . . . 98 31 3 5 6 8 12 2 10 33 26 44 13 . 16 68 112 22 43 9 30 4 2 Melee 308 | . . . . . 3 29 57 19 23 13 12 . 42 57 2 . . . 8 5 19 13 5 . 1 . . Ram 3 | . . . . . . . . . . . . . . . . . . . . . . . . . . 1 2 Kick . | . . . . . . . . . . . . . . . . . . . . . . . . . . . . Crush . | . . . . . . . . . . . . . . . . . . . . . . . . . . . . Escape Stasis 109 | . . . . . . 16 . 8 4 . . . . 32 . . . . . . 49 . . . . . . Rewire 2 | . . . . . . . . . . . . . 1 . . . . . . . 1 . . . . . . Trap . | . . . . . . . . . . . . . . . . . . . . . . . . . . . . Miscellaneous . | . . . . . . . . . . . . . . . . . . . . . . . . . . . . Route ------- -11/Scrapyard -10/Materials (discovered 3 exits: [*Mat] / *Min x2) -10/Mines -10/Exiles (discovered 2 exits: [*Min x2]) -9/Mines -8/Materials (discovered 3 exits: *Fac x2 / Gar) -8/Garrison -8/Materials (discovered 3 exits: *Fac x3) -7/Factory -7/Garrison -7/Factory (discovered 2 exits: *Low / Gar) -7/Lower Caves -7/Lower Caves -6/Factory (discovered 2 exits: [*Low] / Gar) -6/Garrison -6/Factory -6/Lower Caves -6/Lower Caves -6/Data Miner -5/Proximity Caves -5/Factory (discovered 3 exits: [*Upp] / *Ext / Gar) -5/Garrison (discovered 3 exits: *Fac x3) -5/Factory -5/Extension (discovered 3 exits: *Fac x2 / *Cet) -4/Factory (discovered 2 exits: *Res / Gar) -4/Garrison -3/Research -3/Testing History --------- Turn | Location | Event 10 | -11/Scrapyard | Discovered new exit (range 3) 28 | -11/Scrapyard | Entered Materials 92 | -10/Materials | Discovered new exit (range 16) 99 | -10/Materials | Identified exit to Mines 272 | -10/Materials | Discovered new exit (range 7) 321 | -10/Materials | Build established: Mutant 530 | -10/Materials | Entered Mines 541 | -10/Mines | Deemed a non-threat by the Exiles lab entrance 541 | -10/Mines | Discovered new exit (range 5) 545 | -10/Mines | Entered Exiles 560 | -10/Exiles | Discovered new exit (range 14) 594 | -10/Exiles | Met 8R-AWN 611 | -10/Exiles | Met EX-HEX 814 | -10/Exiles | Visited The Gauntlet 953 | -10/Exiles | Build established: Hauler-Mutant 1021 | -10/Exiles | Met EX-DEC 1193 | -10/Exiles | Discovered new exit (range 11) 1413 | -10/Exiles | Met EX-BIN 1682 | -10/Exiles | Entered Mines 1723 | -9/Mines | Discovered new exit (range 7) 1730 | -9/Mines | Entered Materials 1730 | -8/Materials | Evolved 4 slots: Power x1, Propulsion x1, Utility x2 1895 | -8/Materials | Garrison activated, responded to threat 1950 | -8/Materials | Lost 4 parts (2p1n1w) 2091 | -8/Materials | Garrison activated, responded to threat 2323 | -8/Materials | Build established: Scavenger-Mutant 2580 | -8/Materials | Discovered new exit (range 15) 3105 | -8/Materials | Discovered new exit (range 17) 4130 | -8/Materials | First assault squad dispatched 4462 | -8/Materials | Identified exit to Garrison 4505 | -8/Materials | Entered Garrison 4582 | -8/Garrison | Triggered checkpoint 4599 | -8/Garrison | Garrison Relay disabled 4783 | -8/Garrison | Triggered checkpoint 4819 | -8/Garrison | Triggered checkpoint 4831 | -8/Garrison | Core integrity fell below 50% 4867 | -8/Garrison | Lost 10 parts (2p2n2u4w) 4871 | -8/Garrison | Destroyed 11 combat bots 4901 | -8/Garrison | Build established: Hauler-Mutant 5118 | -8/Garrison | Discovered new exit (range 12) 5136 | -8/Garrison | Installed Relay Interface Framework 5178 | -8/Garrison | Triggered checkpoint 5207 | -8/Garrison | Garrison Relay disabled 5277 | -8/Garrison | Build established: Scavenger-Mutant 5390 | -8/Garrison | Entered Materials 5737 | -8/Materials | Core integrity fell below 20% 6132 | -8/Materials | Build established: Bothacker-Mutant 6279 | -8/Materials | Identified exit to Factory 6590 | -8/Materials | First assault squad dispatched 6656 | -8/Materials | Entered Factory 6656 | -7/Factory | Evolved 2 slots: Propulsion x1, Utility x1 7385 | -7/Factory | Found Prototype Launcher 7386 | -7/Factory | Identified Rocket Array 7390 | -7/Factory | Found Rocket Array 7394 | -7/Factory | Found Faulty Rocket Array 7399 | -7/Factory | Found Rocket Array 7486 | -7/Factory | Identified exit to Garrison 7488 | -7/Factory | Entered Garrison 7488 | -7/Garrison | Accompanied by 2 allies 7614 | -7/Garrison | Build established: Scavenger-Mutant 7633 | -7/Garrison | Triggered checkpoint 7633 | -7/Garrison | Triggered checkpoint 7657 | -7/Garrison | Destroyed 8 combat bots 7708 | -7/Garrison | Triggered checkpoint 7781 | -7/Garrison | Lost 5 parts (4n1u) 7923 | -7/Garrison | Discovered new exit (range 10) 7931 | -7/Garrison | Identified exit to Factory 7937 | -7/Garrison | Expanded RIF knowledge: Signal Jamming 7975 | -7/Garrison | Garrison Relay disabled 8112 | -7/Garrison | Entered Factory 8279 | -7/Factory | Build established: Bothacker-Mutant 8360 | -7/Factory | Identified exit to Garrison 8610 | -7/Factory | Discovered new exit (range 5) 8618 | -7/Factory | Identified exit to Lower Caves 8742 | -7/Factory | Repaired Axe 8759 | -7/Factory | Repaired Arm. Wheel 8921 | -7/Factory | Entered Lower Caves 9171 | -7/Lower Caves | Spotted B-75 Beast 9224 | -7/Lower Caves | Destroyed B-75 Beast 9365 | -7/Lower Caves | Discovered new exit (range 8) 9375 | -7/Lower Caves | Identified exit to Lower Caves 9400 | -7/Lower Caves | Entered another Lower Caves area 9439 | -7/Lower Caves | Discovered new exit (range 9) 9449 | -7/Lower Caves | Entered Factory 9449 | -6/Factory | Evolved 2 slots: Utility x2 9711 | -6/Factory | Lost 4 parts (2p1n1u) 9996 | -6/Factory | Garrison activated, responded to threat 10083 | -6/Factory | Discovered new exit (range 6) 10227 | -6/Factory | Identified exit to Garrison 10233 | -6/Factory | Entered Garrison 10277 | -6/Garrison | Expanded RIF knowledge: Patrol Navigation 10364 | -6/Garrison | Garrison Relay disabled 10390 | -6/Garrison | Triggered checkpoint 10438 | -6/Garrison | Lost 3 parts (1p1u1w) 10586 | -6/Garrison | Triggered checkpoint 10860 | -6/Garrison | Triggered checkpoint 10931 | -6/Garrison | Build established: Scavenger-Mutant 11005 | -6/Garrison | Lost 4 parts (2p2n) 11166 | -6/Garrison | Discovered new exit (range 10) 11194 | -6/Garrison | Entered Factory 11562 | -6/Factory | Garrison activated, responded to threat 11666 | -6/Factory | Lost 3 parts (1u2w) 11858 | -6/Factory | Core integrity fell below 50% 11962 | -6/Factory | Discovered new exit (range 3) 12013 | -6/Factory | Entered Lower Caves 12674 | -6/Lower Caves | Spotted B-75 Beast 12818 | -6/Lower Caves | Lost 3 parts (1p1n1w) 12921 | -6/Lower Caves | Attracted the attention of an 0b10 checkpoint 13081 | -6/Lower Caves | Learned Factory stockpile data 13286 | -6/Lower Caves | Discovered new exit (range 16) 13354 | -6/Lower Caves | Entered another Lower Caves area 13470 | -6/Lower Caves | Encountered a Warlord checkpoint 13930 | -6/Lower Caves | Discovered new exit (range 8) 13934 | -6/Lower Caves | Attracted the attention of an 0b10 checkpoint 14134 | -6/Lower Caves | Entered Data Miner 14134 | -6/Data Miner | Discovered new exit (range 6) 14163 | -6/Data Miner | Met Data Miner 14194 | -6/Data Miner | Learned location of Section 7 (-2) 14194 | -6/Data Miner | Acquired the access code to Warlord's prototype stash 14215 | -6/Data Miner | Build established: Derelict-Mutant 14232 | -6/Data Miner | Received God Mode back door access code from Data Miner 14279 | -6/Data Miner | Entered Proximity Caves 14314 | -5/Proximity Caves | Escorted by Enhanced Grunt 14325 | -5/Proximity Caves | Attracted the attention of an 0b10 checkpoint 14337 | -5/Proximity Caves | System corruption reached 10% 14667 | -5/Proximity Caves | Lost 4 parts (1p1n2w) 15484 | -5/Proximity Caves | Spotted B-75 Beast 15528 | -5/Proximity Caves | Core integrity fell below 20% 15539 | -5/Proximity Caves | Destroyed B-75 Beast 15542 | -5/Proximity Caves | Released all parts (9) 15568 | -5/Proximity Caves | Lost 9 parts (3p2n2u2w) 15877 | -5/Proximity Caves | Discovered new exit (range 7) 15895 | -5/Proximity Caves | Entered Factory 15895 | -5/Factory | Evolved 2 slots: Utility x2 15896 | -5/Factory | Identified exit to Extension 16195 | -5/Factory | Repaired Adv. Terrain Scanner 16216 | -5/Factory | Build established: Hauler-Mutant 16247 | -5/Factory | Repaired Lyr. Medium Armor Plating 16324 | -5/Factory | Discovered new exit (range 14) 17188 | -5/Factory | Build established: Scavenger-Mutant 17533 | -5/Factory | Garrison activated, responded to threat 17592 | -5/Factory | Lost 5 parts (2p1n2u) 17996 | -5/Factory | Identified exit to Garrison 18000 | -5/Factory | Entered Garrison 18063 | -5/Garrison | Triggered checkpoint 18296 | -5/Garrison | Triggered checkpoint 18402 | -5/Garrison | Garrison Relay disabled 18453 | -5/Garrison | Triggered checkpoint 18497 | -5/Garrison | Spotted B-75 Beast 18589 | -5/Garrison | Destroyed B-75 Beast 18617 | -5/Garrison | Lost 11 parts (4n4u3w) 18674 | -5/Garrison | Triggered checkpoint 18874 | -5/Garrison | Discovered new exit (range 11) 18994 | -5/Garrison | Phase Generator disabled 19003 | -5/Garrison | Discovered new exit (range 16) 19030 | -5/Garrison | Expanded RIF knowledge: Watcher Feeds 19072 | -5/Garrison | Build established: Bothacker-Mutant 19254 | -5/Garrison | Triggered checkpoint 19264 | -5/Garrison | Core integrity fell below 50% 19352 | -5/Garrison | Discovered new exit (range 14) 19458 | -5/Garrison | Triggered checkpoint 19608 | -5/Garrison | Triggered checkpoint 19727 | -5/Garrison | Garrison Relay disabled 19832 | -5/Garrison | Triggered checkpoint 19886 | -5/Garrison | Triggered checkpoint 19973 | -5/Garrison | Garrison Relay disabled 20022 | -5/Garrison | Entered Factory 20022 | -5/Factory | Accompanied by 2 allies 20023 | -5/Factory | Build established: Botlord-Mutant 20383 | -5/Factory | Discovered exit to Extension (range 16) 20744 | -5/Factory | Entered Extension 20744 | -5/Extension | Accompanied by 2 allies 20853 | -5/Extension | Spotted B-75 Beast 20880 | -5/Extension | Allies destroyed B-75 Beast 20897 | -5/Extension | Spotted B-75 Beast 20912 | -5/Extension | Core integrity fell below 20% 20926 | -5/Extension | Allies destroyed B-75 Beast 20951 | -5/Extension | Lost 9 parts (1p4n3u1w) 21019 | -5/Extension | Disrupted transfer network 21075 | -5/Extension | Rescued a captive Derelict 21075 | -5/Extension | Rescued a captive Derelict 21124 | -5/Extension | Rescued A7 21166 | -5/Extension | Discovered new exit (range 3) 21166 | -5/Extension | Identified exit to Factory 21294 | -5/Extension | Discovered new exit (range 18) 21297 | -5/Extension | Discovered exit to Factory (range 16) 21344 | -5/Extension | First assault squad dispatched 21380 | -5/Extension | Disrupted transfer network 21390 | -5/Extension | Build established: Bothacker-Mutant 21446 | -5/Extension | Identified exit to Cetus 21461 | -5/Extension | Entered Factory 21461 | -4/Factory | Accompanied by 1 ally (A7) 21461 | -4/Factory | Evolved 2 slots: Utility x2 21469 | -4/Factory | Discovered new exit (range 15) 21499 | -4/Factory | Identified exit to Research 21668 | -4/Factory | Identified exit to Garrison 21669 | -4/Factory | Entered Garrison 21669 | -4/Garrison | Accompanied by 1 ally 21704 | -4/Garrison | Triggered checkpoint 21749 | -4/Garrison | Garrison Relay disabled 21782 | -4/Garrison | Spotted B-86 Titan 21805 | -4/Garrison | Triggered checkpoint 21814 | -4/Garrison | Triggered checkpoint 21821 | -4/Garrison | Destroyed B-86 Titan 21866 | -4/Garrison | Core integrity fell below 50% 21888 | -4/Garrison | Triggered checkpoint 21897 | -4/Garrison | Discovered exit to Research (range 8) 21901 | -4/Garrison | Entered Research 21901 | -3/Research | Evolved 2 slots: Utility x2 21917 | -3/Research | Lost 23 parts (2p4n11u6w) 22164 | -3/Research | Build established: Mutant 22247 | -3/Research | Spotted B-86 Titan 22383 | -3/Research | Discovered new exit (range 11) 22390 | -3/Research | Entered Testing 22417 | -3/Testing | Lost 5 parts (2n3u) 22467 | -3/Testing | Spotted Alpha 7 22468 | -3/Testing | Spotted G6-3ZE(L) 22469 | -3/Testing | Spotted XA-R4O(L) 22501 | -3/Testing | Core integrity fell below 50% 22513 | -3/Testing | Core integrity fell below 20% 22521 | -3/Testing | Destroyed by S-43 Plague with Heavy Machine Gun Last Messages --------------- 22496_ Arcs of energy rise from the floor. 22496_ Hvy. Quantum Rifle blown off. 22496_ Imp. Gyrokinetic Inverter blown off. 22496_ Adv. Salvage Targeting Computer blown off. 22496_ Imp. Melee Analysis Suite blown off. 22496_ U-05 Engineer lays Concrete. 22497_ Triggered Segregator Trap. 22497_ Arcs of energy rise from the floor. 22497_ Relay Coupler [NC] blown off. 22497_ >> Watcher Feeds: All visual feed links lost. 22497_ Exp. Optical Array blown off. 22497_ Adv. Salvage Targeting Computer blown off. 22497_ W-44 Eye sends out distress signal. 22497_ U-05 Engineer lays Concrete. 22500_ G-67 Veteran knocked back. 22501_ Energy Well destroyed. 22519_ Acquired Prototype Hover Unit. 22519_ Identified Cld. Antigrav System. 22519_ Malfunction: Meltdown. 22520_ System corrupted: Energy discharge (-33). Map ----- +----------------------------------------------------+ | ###"############# #""" ! " #??????????????? | | #?# + # #??????????????? | | ""#?# # ##############??????????????? | | [ "#?# """ # #???????????????????????????? | | ""#???""" ?# #???????????????????????????? | | " "#???""" ??# #???????????????????????????? | | #"""#????"" ???# #???????????????????????????? | | #####????"" [???# #???????????????????????????? | | ????????? ????# #???????????????????????????? | | ?????????##?????# #???????????????????????????? | | ????????????????# #???????????????????????????? | | ????????????????# #???????????????????????????? | | ????????????????# #???????????????????????????? | | ????????????????# #???????????????????????????? | | ????????????????# #???????????????????????????? | | ??????????????" + #???????????????????????????? | | ????????????""" # #???????????????????????????? | | ????????????""" # ##########??????????????????? | | ???????????? ?# # #??????????????????? | | ???????????####?# # """ "#??????????????????? | | ????????????????# s # """" "#??????????????????? | | ?????????????#### # """" "#??????????????????? | | ?????? s """ T#??????????????????? | | ????? # "#??????????????????? | | ?????? # "#??????????????????? | | ?????? # ! @ "#??????????????????? | | ???????############### #??????????????????? | | ?????????????????????##########??????????????????? | | ?????????????????????????????????????????????????? | | ?????????????????????????????????????????????????? | | ?????????????????????????????????????????????????? | | ?????????????????????????????????????????????????? | | ?????????????????????????????????????????????????? | | ?????????????????????????????????????????????????? | | ?????????????????????????????????????????????????? | | ?????????????????????????????????????????????????? | | ?????????????????????????????????????????????????? | | ?????????????????????????????????????????????????? | | ?????????????????????????????????????????????????? | | ?????????????????????????????????????????????????? | | ?????????????????????????????????????????????????? | | ?????????????????????????????????????????????????? | | ?????????????????????????????????????????????????? | | ?????????????????????????????????????????????????? | | ?????????????????????????????????????????????????? | | ?????????????????????????????????????????????????? | | ?????????????????????????????????????????????????? | | ?????????????????????????????????????????????????? | | ?????????????????????????????????????????????????? | | ?????????????????????????????????????????????????? | +----------------------------------------------------+ Best States ------------- Heat Dissipation 97 Energy Generation 37 Energy Capacity 1125 Matter Stores 550 Matter Capacity 550 Sight Range 23 Robot Scan Range 20 Terrain Scan Range 24 Terrain Scan Density 210 Jamming Range 8 Power Amplification 20 Armor Coverage 450 Resistance: KI 20 Melee Speed Boost 50 Phase Shifting 5 Evasion (%) 65 Targeting Accuracy 8 Melee Accuracy 12 Target Analysis 6 Core Analysis 8 Recoil Reduction 8 Matter Filtering 50 Particle Charging 20 Kinecelleration 40 Salvage Targeting 9 Offensive Hacking 10 Defensive Hacking 12 Relay Coupler Types 150 Relay Coupler Value 5 Item Schematics ----------------- Hrd. Medium Armor Plating | -8/Materials | Scanalyzed Hcp. Battery | -8/Materials | Scanalyzed Lgt. EM Pulse Cannon | -8/Materials | Scanalyzed Humpback | -8/Materials | Scanalyzed Hcp. Matter Pod | -8/Materials | Scanalyzed Arm. Wheel | -8/Materials | Scanalyzed Lgt. Treads | -8/Materials | Scanalyzed Imp. Signal Interpreter | -8/Materials | Scanalyzed EM Pulse Cannon | -8/Materials | Scanalyzed Flak Cannon | -8/Materials | Scanalyzed Hacking Suite | -8/Materials | Scanalyzed Great Maul | -8/Materials | Scanalyzed Nuclear Core | -8/Materials | Scanalyzed Combat Drone Bay | -6/Data Miner | Free Lgt. Regenerative Plating | -6/Data Miner | Free Exp. Sensor Array | -6/Data Miner | Free Exp. Terrain Scanner | -6/Data Miner | Free Exp. Transmission Jammer | -6/Data Miner | Free Exp. ECM Suite | -6/Data Miner | Free Mni. Smartbomb Launcher | -6/Data Miner | Free Plasma Sword | -6/Data Miner | Free Kinetic Spear | -6/Data Miner | Free Lyr. Medium Armor Plating | -5/Factory | Scanalyzed Robot Schematics ------------------ S-27 Virus | -6/Data Miner | Free G-50 Soldier | -6/Data Miner | Free G-67 Veteran | -6/Data Miner | Free X-72 Disruptor | -6/Data Miner | Free H-66 Slayer | -6/Data Miner | Free I-36 Angel | -6/Data Miner | Free Fabricated ------------ Nothing Alien Tech Used ----------------- None Achievements -------------- Assimilation Complete Dramatic Entrance Leap Before You Look Maybe Next Time I'll Detach My Launcher Challenges ------------ None Game ------ Seed LinkedFluxCloak Manual? 0 Play Time 09:54:11 Cumulative 132.0 hours Start 2021.08.04 @ 17:00:37 End 2021.08.07 @ 21:17:38 Sessions 9 Manual Loads 0 Difficulty Rogue Special Mode None Game No. 47 Rogue 44 Adventurer 0 Explorer 3 Win Type - Total 2 Types 2/0/0/0/0/0/0/0/0 Lore% 41 Gallery% 59 Achievement% 40 Wizard Run 0 Options --------- ASCII 0 Keyboard 0 Movement Numpad Keybinds 0 Fullscreen 1 Font 18/SmallcapsGlow Map View 76x50 Tactical HUD 1 Map Filters NONE Filters NONE Steam 1 RUN: 57da4008-9551-4a12-b85a-cce763d38a60